[Event "Titled Tuesday Blitz December 06 Late 2022"]
[White "Dzierzak, Radoslaw"]
[Black "Harshavardhan G B"]
[WhiteFideId "1161407"]
[BlackFideId "25059009"]
[WhiteElo "2111"]
[BlackElo "2323"]
[Result "0-1"]
[Round "02"]
[TimeControl "180+1"]
[Date "2022.12.07"]
[WhiteClock "0:00:17"]
[BlackClock "0:00:45"]

1. e4 {[%clk 0:02:42]}  e5 {[%clk 0:02:58]} 2. Nf3 {[%clk 0:02:43]}  Nc6 {[%clk 0:02:57]} 3. Bc4 {[%clk 0:02:43]}  Nf6 {[%clk 0:02:56]} 4. d3 {[%clk 0:02:43]}  h6 {[%clk 0:02:53]} 5. O-O {[%clk 0:02:34]}  d6 {[%clk 0:02:52]} 6. c3 {[%clk 0:02:34]}  Qe7 {[%clk 0:02:50]} 7. a4 {[%clk 0:02:33]}  g5 {[%clk 0:02:46]} 8. Na3 {[%clk 0:02:28]}  Be6 {[%clk 0:02:41]} 9. Re1 {[%clk 0:02:23]}  Bg7 {[%clk 0:02:40]} 10. d4 {[%clk 0:02:09]}  Bxc4 {[%clk 0:02:37]} 11. Nxc4 {[%clk 0:02:08]}  Nd7 {[%clk 0:02:23]} 12. dxe5 {[%clk 0:01:49]}  dxe5 {[%clk 0:02:18]} 13. Ne3 {[%clk 0:01:47]}  Qe6 {[%clk 0:02:03]} 14. Nd5 {[%clk 0:01:40]}  O-O-O {[%clk 0:01:49]} 15. a5 {[%clk 0:01:31]}  a6 {[%clk 0:01:45]} 16. Qa4 {[%clk 0:01:25]}  f5 {[%clk 0:01:36]} 17. b4 {[%clk 0:00:51]}  fxe4 {[%clk 0:01:32]} 18. b5 {[%clk 0:00:51]}  Nc5 {[%clk 0:01:19]} 19. Qa2 {[%clk 0:00:44]}  Qxd5 {[%clk 0:01:16]} 20. c4 {[%clk 0:00:38]}  Nb4 {[%clk 0:01:04]} 21. Qa3 {[%clk 0:00:22]}  Nc2 {[%clk 0:01:02]} 22. cxd5 {[%clk 0:00:20]}  Nxa3 {[%clk 0:01:01]} 23. Bxa3 {[%clk 0:00:20]}  exf3 {[%clk 0:00:56]} 24. Bxc5 {[%clk 0:00:20]}  Rxd5 {[%clk 0:00:56]} 25. Rac1 {[%clk 0:00:20]}  axb5 {[%clk 0:00:53]} 26. Bb6 {[%clk 0:00:20]}  Rd7 {[%clk 0:00:46]} 27. a6 {[%clk 0:00:17]}  bxa6 {[%clk 0:00:45]} 0-1


[Site "https://www.chess.com"]

[Event "Titled Tuesday Blitz December 06 Late 2022"]
[White "Ehlvest, Jaan"]
[Black "Rubio Tent, Francisco"]
[WhiteFideId "4500016"]
[BlackFideId "2238233"]
[WhiteElo "2430"]
[BlackElo "2211"]
[Result "1-0"]
[Round "02"]
[TimeControl "180+1"]
[Date "2022.12.07"]
[WhiteClock "0:00:44"]
[BlackClock "0:00:06"]

1. e4 {[%clk 0:02:56]}  c6 {[%clk 0:03:00]} 2. d4 {[%clk 0:02:54]}  d5 {[%clk 0:03:01]} 3. exd5 {[%clk 0:02:54]}  cxd5 {[%clk 0:03:01]} 4. Bd3 {[%clk 0:02:54]}  Nc6 {[%clk 0:03:01]} 5. c3 {[%clk 0:02:54]}  Qc7 {[%clk 0:03:01]} 6. h3 {[%clk 0:02:51]}  g6 {[%clk 0:03:01]} 7. Nf3 {[%clk 0:02:50]}  Bf5 {[%clk 0:03:00]} 8. Be2 {[%clk 0:02:49]}  h5 {[%clk 0:02:50]} 9. O-O {[%clk 0:02:48]}  Nf6 {[%clk 0:02:50]} 10. Re1 {[%clk 0:02:42]}  Bg7 {[%clk 0:02:39]} 11. Be3 {[%clk 0:02:40]}  O-O {[%clk 0:02:39]} 12. Nbd2 {[%clk 0:02:40]}  Ne4 {[%clk 0:02:33]} 13. a4 {[%clk 0:02:37]}  Bf6 {[%clk 0:02:13]} 14. Nxe4 {[%clk 0:02:27]}  Bxe4 {[%clk 0:02:04]} 15. Ng5 {[%clk 0:02:22]}  Bf5 {[%clk 0:01:47]} 16. Bf3 {[%clk 0:02:11]}  Rad8 {[%clk 0:01:37]} 17. g4 {[%clk 0:02:05]}  hxg4 {[%clk 0:01:38]} 18. hxg4 {[%clk 0:02:05]}  Bc8 {[%clk 0:01:39]} 19. Kg2 {[%clk 0:02:03]}  Kg7 {[%clk 0:01:39]} 20. Qd2 {[%clk 0:01:56]}  Na5 {[%clk 0:01:29]} 21. Bf4 {[%clk 0:01:42]}  Qc6 {[%clk 0:01:12]} 22. Qe2 {[%clk 0:01:38]}  Nc4 {[%clk 0:01:02]} 23. Rh1 {[%clk 0:01:35]}  Rh8 {[%clk 0:00:58]} 24. b3 {[%clk 0:01:26]}  Na5 {[%clk 0:00:42]} 25. c4 {[%clk 0:01:25]}  Nxb3 {[%clk 0:00:35]} 26. Rxh8 {[%clk 0:01:21]}  Rxh8 {[%clk 0:00:31]} 27. Bxd5 {[%clk 0:01:13]}  Nxd4 {[%clk 0:00:30]} 28. Qd3 {[%clk 0:00:58]}  Qd7 {[%clk 0:00:22]} 29. f3 {[%clk 0:00:52]}  e6 {[%clk 0:00:22]} 30. Ne4 {[%clk 0:00:52]}  exd5 {[%clk 0:00:16]} 31. Nxf6 {[%clk 0:00:52]}  dxc4 {[%clk 0:00:16]} 32. Nxd7 {[%clk 0:00:49]}  cxd3 {[%clk 0:00:16]} 33. Be5+ {[%clk 0:00:49]}  f6 {[%clk 0:00:06]} 34. Bxf6+ {[%clk 0:00:48]}  Kg8 {[%clk 0:00:06]} 35. Bxd4 {[%clk 0:00:44]} 1-0


[Site "https://www.chess.com"]

[Event "Titled Tuesday Blitz December 06 Late 2022"]
[White "Eljanov, Pavel"]
[Black "Pinheiro, Iung Alicio de O."]
[WhiteFideId "14102951"]
[BlackFideId "2104350"]
[WhiteElo "2598"]
[BlackElo "2283"]
[Result "1-0"]
[Round "02"]
[TimeControl "180+1"]
[Date "2022.12.06"]
[WhiteClock "0:00:56"]
[BlackClock "0:00:04"]

1. e4 {[%clk 0:03:00]}  c6 {[%clk 0:02:58]} 2. d4 {[%clk 0:02:59]}  d5 {[%clk 0:02:59]} 3. exd5 {[%clk 0:02:59]}  cxd5 {[%clk 0:02:59]} 4. Bd3 {[%clk 0:03:00]}  Nc6 {[%clk 0:02:59]} 5. c3 {[%clk 0:03:00]}  Nf6 {[%clk 0:02:59]} 6. Bf4 {[%clk 0:02:59]}  Bg4 {[%clk 0:02:54]} 7. Qb3 {[%clk 0:02:58]}  Qd7 {[%clk 0:02:53]} 8. Nd2 {[%clk 0:02:58]}  e6 {[%clk 0:02:52]} 9. Ngf3 {[%clk 0:02:59]}  Bxf3 {[%clk 0:02:52]} 10. Nxf3 {[%clk 0:02:58]}  Bd6 {[%clk 0:02:53]} 11. Bxd6 {[%clk 0:02:59]}  Qxd6 {[%clk 0:02:54]} 12. O-O {[%clk 0:02:59]}  O-O {[%clk 0:02:53]} 13. Rfe1 {[%clk 0:02:59]}  Qc7 {[%clk 0:02:54]} 14. Qc2 {[%clk 0:02:55]}  g6 {[%clk 0:02:43]} 15. Qd2 {[%clk 0:02:44]}  Kg7 {[%clk 0:02:27]} 16. h4 {[%clk 0:02:34]}  Rae8 {[%clk 0:02:10]} 17. Ne5 {[%clk 0:02:33]}  Nxe5 {[%clk 0:02:05]} 18. dxe5 {[%clk 0:02:28]}  Nd7 {[%clk 0:02:06]} 19. Qf4 {[%clk 0:02:24]}  Qb8 {[%clk 0:01:50]} 20. Bb5 {[%clk 0:02:17]}  Qd8 {[%clk 0:01:41]} 21. h5 {[%clk 0:02:16]}  f5 {[%clk 0:01:33]} 22. Re3 {[%clk 0:01:44]}  a6 {[%clk 0:01:27]} 23. Bxd7 {[%clk 0:01:43]}  Qxd7 {[%clk 0:01:28]} 24. Rh3 {[%clk 0:01:26]}  Rh8 {[%clk 0:01:25]} 25. Rd1 {[%clk 0:01:24]}  b5 {[%clk 0:01:18]} 26. Rdd3 {[%clk 0:01:23]}  Qe7 {[%clk 0:00:34]} 27. Rdg3 {[%clk 0:01:22]}  Reg8 {[%clk 0:00:34]} 28. Rg5 {[%clk 0:01:11]}  Kf7 {[%clk 0:00:34]} 29. Rhg3 {[%clk 0:01:07]}  gxh5 {[%clk 0:00:29]} 30. Qh4 {[%clk 0:01:06]}  Rxg5 {[%clk 0:00:28]} 31. Rxg5 {[%clk 0:01:06]}  Rg8 {[%clk 0:00:20]} 32. Qxh5+ {[%clk 0:01:06]}  Kf8 {[%clk 0:00:21]} 33. Qh6+ {[%clk 0:01:07]}  Rg7 {[%clk 0:00:21]} 34. Rxg7 {[%clk 0:01:05]}  Qxg7 {[%clk 0:00:22]} 35. Qxe6 {[%clk 0:01:05]}  Qg4 {[%clk 0:00:22]} 36. Qd6+ {[%clk 0:01:02]}  Ke8 {[%clk 0:00:18]} 37. Qxd5 {[%clk 0:01:02]}  Qf4 {[%clk 0:00:06]} 38. g3 {[%clk 0:00:55]}  Qc1+ {[%clk 0:00:04]} 39. Kg2 {[%clk 0:00:56]} 1-0


[Site "https://www.chess.com"]

[Event "Titled Tuesday Blitz December 06 Late 2022"]
[White "Floresvillar Gonzalez, Luis Migu"]
[Black "Tymrakiewicz, Rafal"]
[WhiteFideId "5100542"]
[BlackFideId "1108832"]
[WhiteElo "2040"]
[BlackElo "2139"]
[Result "0-1"]
[Round "02"]
[TimeControl "180+1"]
[Date "2022.12.07"]
[WhiteClock "0:00:02"]
[BlackClock "0:00:03"]

1. d4 {[%clk 0:03:00]}  e6 {[%clk 0:02:51]} 2. c3 {[%clk 0:03:00]}  c5 {[%clk 0:02:49]} 3. g3 {[%clk 0:02:57]}  cxd4 {[%clk 0:02:49]} 4. cxd4 {[%clk 0:02:56]}  d5 {[%clk 0:02:50]} 5. Nc3 {[%clk 0:02:55]}  Nc6 {[%clk 0:02:50]} 6. Bg2 {[%clk 0:02:55]}  f5 {[%clk 0:02:50]} 7. Nf3 {[%clk 0:02:54]}  Nf6 {[%clk 0:02:51]} 8. O-O {[%clk 0:02:54]}  Bd6 {[%clk 0:02:50]} 9. Bf4 {[%clk 0:02:51]}  a6 {[%clk 0:02:49]} 10. Ne5 {[%clk 0:02:48]}  Bxe5 {[%clk 0:02:44]} 11. Bxe5 {[%clk 0:02:47]}  Nxe5 {[%clk 0:02:43]} 12. dxe5 {[%clk 0:02:47]}  Nd7 {[%clk 0:02:44]} 13. f4 {[%clk 0:02:47]}  b5 {[%clk 0:02:43]} 14. e3 {[%clk 0:02:38]}  Bb7 {[%clk 0:02:43]} 15. Qh5+ {[%clk 0:02:32]}  g6 {[%clk 0:02:42]} 16. Qh6 {[%clk 0:02:32]}  Qe7 {[%clk 0:02:42]} 17. Bxd5 {[%clk 0:02:24]}  Bxd5 {[%clk 0:02:38]} 18. Nxd5 {[%clk 0:02:23]}  exd5 {[%clk 0:02:38]} 19. Rac1 {[%clk 0:02:18]}  Nc5 {[%clk 0:02:12]} 20. b4 {[%clk 0:02:06]}  Ne6 {[%clk 0:02:12]} 21. Rc6 {[%clk 0:02:04]}  Kf7 {[%clk 0:01:44]} 22. Rfc1 {[%clk 0:02:02]}  Rae8 {[%clk 0:01:43]} 23. Rxa6 {[%clk 0:01:55]}  Qxb4 {[%clk 0:01:23]} 24. Ra7+ {[%clk 0:01:46]}  Re7 {[%clk 0:01:23]} 25. Rxe7+ {[%clk 0:01:39]}  Qxe7 {[%clk 0:01:23]} 26. Rc6 {[%clk 0:01:30]}  Qb4 {[%clk 0:00:44]} 27. Rd6 {[%clk 0:01:12]}  Qe1+ {[%clk 0:00:13]} 28. Kg2 {[%clk 0:01:11]}  Qe2+ {[%clk 0:00:11]} 29. Kh3 {[%clk 0:01:10]}  Qh5+ {[%clk 0:00:12]} 30. Qxh5 {[%clk 0:01:09]}  gxh5 {[%clk 0:00:12]} 31. Rxd5 {[%clk 0:01:07]}  Rb8 {[%clk 0:00:09]} 32. Kh4 {[%clk 0:01:02]}  Ke7 {[%clk 0:00:09]} 33. Kxh5 {[%clk 0:00:59]}  b4 {[%clk 0:00:09]} 34. Rd2 {[%clk 0:00:50]}  Rb6 {[%clk 0:00:09]} 35. Rb2 {[%clk 0:00:49]}  Nc5 {[%clk 0:00:08]} 36. Kg5 {[%clk 0:00:40]}  Ke6 {[%clk 0:00:08]} 37. Kh6 {[%clk 0:00:35]}  Rb7 {[%clk 0:00:07]} 38. h3 {[%clk 0:00:34]}  Ne4 {[%clk 0:00:07]} 39. g4 {[%clk 0:00:33]}  fxg4 {[%clk 0:00:06]} 40. hxg4 {[%clk 0:00:33]}  Kd5 {[%clk 0:00:06]} 41. g5 {[%clk 0:00:29]}  Ng3 {[%clk 0:00:07]} 42. g6 {[%clk 0:00:28]}  hxg6 {[%clk 0:00:06]} 43. Kxg6 {[%clk 0:00:28]}  Ke4 {[%clk 0:00:06]} 44. e6 {[%clk 0:00:27]}  Nf5 {[%clk 0:00:06]} 45. Rd2 {[%clk 0:00:25]}  Nxe3 {[%clk 0:00:04]} 46. Re2 {[%clk 0:00:23]}  Kf3 {[%clk 0:00:04]} 47. Rb2 {[%clk 0:00:22]}  Kxf4 {[%clk 0:00:04]} 48. Kf6 {[%clk 0:00:20]}  Nd5+ {[%clk 0:00:04]} 49. Kg6 {[%clk 0:00:20]}  Ne7+ {[%clk 0:00:01]} 50. Kf6 {[%clk 0:00:20]}  Nd5+ {[%clk 0:00:02]} 51. Kg6 {[%clk 0:00:20]}  Re7 {[%clk 0:00:02]} 52. Rf2+ {[%clk 0:00:12]}  Ke3 {[%clk 0:00:02]} 53. Rf5 {[%clk 0:00:11]}  Rxe6+ {[%clk 0:00:02]} 54. Kf7 {[%clk 0:00:10]}  Nc7 {[%clk 0:00:03]} 55. Rc5 {[%clk 0:00:08]}  Ra6 {[%clk 0:00:02]} 56. Rxc7 {[%clk 0:00:07]}  Rxa2 {[%clk 0:00:02]} 57. Rb7 {[%clk 0:00:07]}  Rb2 {[%clk 0:00:02]} 58. Ke6 {[%clk 0:00:07]}  Kd4 {[%clk 0:00:03]} 59. Kd6 {[%clk 0:00:06]}  Kc4 {[%clk 0:00:02]} 60. Kc6 {[%clk 0:00:06]}  Rd2 {[%clk 0:00:02]} 61. Kb6 {[%clk 0:00:04]}  b3 {[%clk 0:00:02]} 62. Ka5 {[%clk 0:00:04]}  Ra2+ {[%clk 0:00:02]} 63. Kb6 {[%clk 0:00:03]}  b2 {[%clk 0:00:02]} 64. Kc6 {[%clk 0:00:02]}  Kc3 {[%clk 0:00:03]} 65. Kc5 {[%clk 0:00:02]}  Ra1 {[%clk 0:00:03]} 0-1


[Site "https://www.chess.com"]

[Event "Titled Tuesday Blitz December 06 Late 2022"]
[White "Freile Martin, Javier"]
[Black "Ozates, Tuna"]
[WhiteFideId "3600165"]
[BlackFideId "6354521"]
[WhiteElo "2319"]
[BlackElo "2151"]
[Result "1-0"]
[Round "02"]
[TimeControl "180+1"]
[Date "2022.12.07"]
[WhiteClock "0:01:01"]
[BlackClock "0:01:04"]

1. c4 {[%clk 0:03:00]}  Nf6 {[%clk 0:02:52]} 2. Nc3 {[%clk 0:02:59]}  e6 {[%clk 0:02:53]} 3. e4 {[%clk 0:02:59]}  d5 {[%clk 0:02:43]} 4. e5 {[%clk 0:02:57]}  d4 {[%clk 0:02:37]} 5. exf6 {[%clk 0:02:56]}  dxc3 {[%clk 0:02:38]} 6. bxc3 {[%clk 0:02:57]}  Qxf6 {[%clk 0:02:38]} 7. Nf3 {[%clk 0:02:57]}  h6 {[%clk 0:02:38]} 8. d4 {[%clk 0:02:51]}  Bd6 {[%clk 0:02:33]} 9. Bd3 {[%clk 0:02:50]}  O-O {[%clk 0:02:31]} 10. O-O {[%clk 0:02:47]}  Nc6 {[%clk 0:02:30]} 11. Re1 {[%clk 0:02:45]}  Ne7 {[%clk 0:02:04]} 12. Rb1 {[%clk 0:02:39]}  b6 {[%clk 0:02:01]} 13. Be4 {[%clk 0:02:29]}  Rb8 {[%clk 0:02:01]} 14. c5 {[%clk 0:02:27]}  Bf4 {[%clk 0:02:01]} 15. Bxf4 {[%clk 0:02:23]}  Qxf4 {[%clk 0:02:02]} 16. Ne5 {[%clk 0:02:20]}  Rd8 {[%clk 0:01:53]} 17. g3 {[%clk 0:02:11]}  Qf6 {[%clk 0:01:52]} 18. Ng4 {[%clk 0:01:59]}  Qg5 {[%clk 0:01:49]} 19. h4 {[%clk 0:01:53]}  Qxg4 {[%clk 0:01:45]} 20. Qxg4 {[%clk 0:01:51]}  Nd5 {[%clk 0:01:43]} 21. Bxd5 {[%clk 0:01:49]}  Rxd5 {[%clk 0:01:43]} 22. Re5 {[%clk 0:01:40]}  Rd8 {[%clk 0:01:37]} 23. c6 {[%clk 0:01:36]}  Rd6 {[%clk 0:01:37]} 24. Qe4 {[%clk 0:01:35]}  b5 {[%clk 0:01:31]} 25. c4 {[%clk 0:01:32]}  b4 {[%clk 0:01:31]} 26. c5 {[%clk 0:01:25]}  Rd8 {[%clk 0:01:30]} 27. d5 {[%clk 0:01:25]}  a5 {[%clk 0:01:30]} 28. Qc4 {[%clk 0:01:12]}  exd5 {[%clk 0:01:26]} 29. Rxd5 {[%clk 0:01:12]}  Be6 {[%clk 0:01:26]} 30. Rxd8+ {[%clk 0:01:11]}  Rxd8 {[%clk 0:01:26]} 31. Qa6 {[%clk 0:01:11]}  Bxa2 {[%clk 0:01:26]} 32. Re1 {[%clk 0:01:04]}  Bd5 {[%clk 0:01:11]} 33. Qxa5 {[%clk 0:01:03]}  b3 {[%clk 0:01:10]} 34. Qxc7 {[%clk 0:01:02]}  Rf8 {[%clk 0:01:04]} 35. Qb6 {[%clk 0:01:01]} 1-0


[Site "https://www.chess.com"]

[Event "Titled Tuesday Blitz December 06 Late 2022"]
[White "Goroshkov, Maksym"]
[Black "Shohat, Yotam"]
[WhiteFideId "14142716"]
[BlackFideId "2813955"]
[WhiteElo "2258"]
[BlackElo "2216"]
[Result "0-1"]
[Round "02"]
[TimeControl "180+1"]
[Date "2022.12.07"]
[WhiteClock "0:00:43"]
[BlackClock "0:00:13"]

1. e4 {[%clk 0:02:59]}  c5 {[%clk 0:02:54]} 2. d4 {[%clk 0:02:59]}  cxd4 {[%clk 0:02:54]} 3. c3 {[%clk 0:03:00]}  e6 {[%clk 0:02:46]} 4. cxd4 {[%clk 0:02:59]}  d5 {[%clk 0:02:46]} 5. exd5 {[%clk 0:02:59]}  exd5 {[%clk 0:02:45]} 6. Nc3 {[%clk 0:03:00]}  Nf6 {[%clk 0:02:44]} 7. Nf3 {[%clk 0:02:59]}  Be7 {[%clk 0:02:42]} 8. Bd3 {[%clk 0:02:55]}  O-O {[%clk 0:02:42]} 9. O-O {[%clk 0:02:54]}  Bg4 {[%clk 0:02:42]} 10. h3 {[%clk 0:02:53]}  Bh5 {[%clk 0:02:42]} 11. g4 {[%clk 0:02:53]}  Bg6 {[%clk 0:02:42]} 12. Ne5 {[%clk 0:02:54]}  Nc6 {[%clk 0:02:40]} 13. f4 {[%clk 0:02:53]}  Bxd3 {[%clk 0:02:35]} 14. Qxd3 {[%clk 0:02:54]}  Bb4 {[%clk 0:02:33]} 15. f5 {[%clk 0:02:39]}  Qb6 {[%clk 0:02:16]} 16. Nxc6 {[%clk 0:02:24]}  bxc6 {[%clk 0:02:13]} 17. Bg5 {[%clk 0:02:20]}  Bxc3 {[%clk 0:01:42]} 18. bxc3 {[%clk 0:02:09]}  Ne4 {[%clk 0:01:40]} 19. Be7 {[%clk 0:02:09]}  Rfe8 {[%clk 0:01:36]} 20. f6 {[%clk 0:02:09]}  Qb2 {[%clk 0:01:23]} 21. Rae1 {[%clk 0:02:01]}  Qxc3 {[%clk 0:01:15]} 22. Qxc3 {[%clk 0:01:45]}  Nxc3 {[%clk 0:01:16]} 23. Re5 {[%clk 0:01:45]}  Ne4 {[%clk 0:01:03]} 24. Rc1 {[%clk 0:01:38]}  gxf6 {[%clk 0:00:58]} 25. Rxe4 {[%clk 0:01:38]}  dxe4 {[%clk 0:00:57]} 26. Bxf6 {[%clk 0:01:39]}  Re6 {[%clk 0:00:57]} 27. Be5 {[%clk 0:01:38]}  f6 {[%clk 0:00:55]} 28. Bf4 {[%clk 0:01:38]}  Rd8 {[%clk 0:00:50]} 29. Be3 {[%clk 0:01:38]}  Rd5 {[%clk 0:00:49]} 30. Rb1 {[%clk 0:01:37]}  Rb5 {[%clk 0:00:49]} 31. Rc1 {[%clk 0:01:35]}  f5 {[%clk 0:00:47]} 32. gxf5 {[%clk 0:01:33]}  Rxf5 {[%clk 0:00:46]} 33. Rb1 {[%clk 0:01:32]}  Rb5 {[%clk 0:00:43]} 34. Rc1 {[%clk 0:01:30]}  Rg6+ {[%clk 0:00:40]} 35. Kh1 {[%clk 0:01:26]}  Rf5 {[%clk 0:00:32]} 36. Re1 {[%clk 0:01:05]}  Rf3 {[%clk 0:00:31]} 37. Kh2 {[%clk 0:01:03]}  Rgg3 {[%clk 0:00:28]} 38. Bc1 {[%clk 0:01:02]}  Rxh3+ {[%clk 0:00:24]} 39. Kg2 {[%clk 0:01:02]}  Rhg3+ {[%clk 0:00:24]} 40. Kh2 {[%clk 0:01:02]}  e3 {[%clk 0:00:23]} 41. Ba3 {[%clk 0:00:50]}  h5 {[%clk 0:00:21]} 42. Bd6 {[%clk 0:00:49]}  Rg4 {[%clk 0:00:19]} 43. Be5 {[%clk 0:00:48]}  Rf2+ {[%clk 0:00:18]} 44. Kh3 {[%clk 0:00:47]}  e2 {[%clk 0:00:18]} 45. Rb1 {[%clk 0:00:44]}  Rf1 {[%clk 0:00:15]} 46. Rb8+ {[%clk 0:00:44]}  Kf7 {[%clk 0:00:15]} 47. Rb7+ {[%clk 0:00:44]}  Ke6 {[%clk 0:00:15]} 48. Bg3 {[%clk 0:00:41]}  Rxg3+ {[%clk 0:00:15]} 49. Kxg3 {[%clk 0:00:42]}  e1=Q+ {[%clk 0:00:15]} 50. Kg2 {[%clk 0:00:42]}  Qf2+ {[%clk 0:00:13]} 51. Kh3 {[%clk 0:00:43]}  Rh1# {[%clk 0:00:13]} 0-1


[Site "https://www.chess.com"]

[Event "Titled Tuesday Blitz December 06 Late 2022"]
[White "Haszon, David"]
[Black "Stanisz, Patryk"]
[WhiteFideId "733610"]
[BlackFideId "1123106"]
[WhiteElo "2210"]
[BlackElo "2069"]
[Result "0-1"]
[Round "02"]
[TimeControl "180+1"]
[Date "2022.12.07"]
[WhiteClock "0:00:07"]
[BlackClock "0:00:03"]

1. e4 {[%clk 0:03:00]}  c5 {[%clk 0:02:59]} 2. c3 {[%clk 0:03:00]}  Nf6 {[%clk 0:02:58]} 3. e5 {[%clk 0:02:57]}  Nd5 {[%clk 0:02:58]} 4. d4 {[%clk 0:02:54]}  cxd4 {[%clk 0:02:59]} 5. Nf3 {[%clk 0:02:54]}  Nc6 {[%clk 0:02:59]} 6. cxd4 {[%clk 0:02:47]}  d6 {[%clk 0:02:58]} 7. Bc4 {[%clk 0:02:23]}  Nb6 {[%clk 0:02:58]} 8. Bb5 {[%clk 0:02:13]}  d5 {[%clk 0:02:58]} 9. O-O {[%clk 0:02:10]}  Bg4 {[%clk 0:02:55]} 10. h3 {[%clk 0:01:59]}  Bxf3 {[%clk 0:02:54]} 11. Qxf3 {[%clk 0:02:00]}  e6 {[%clk 0:02:54]} 12. Be3 {[%clk 0:01:56]}  Rc8 {[%clk 0:02:53]} 13. a3 {[%clk 0:01:55]}  a6 {[%clk 0:02:51]} 14. Bd3 {[%clk 0:01:54]}  Na5 {[%clk 0:02:45]} 15. Nd2 {[%clk 0:01:48]}  Be7 {[%clk 0:02:45]} 16. Rac1 {[%clk 0:01:37]}  Qd7 {[%clk 0:02:01]} 17. Qg4 {[%clk 0:01:14]}  g6 {[%clk 0:01:49]} 18. b4 {[%clk 0:01:06]}  Nac4 {[%clk 0:01:47]} 19. Bxc4 {[%clk 0:01:06]}  Nxc4 {[%clk 0:01:42]} 20. Nxc4 {[%clk 0:01:06]}  Rxc4 {[%clk 0:01:27]} 21. Bh6 {[%clk 0:00:58]}  Qa4 {[%clk 0:01:09]} 22. Rxc4 {[%clk 0:00:51]}  dxc4 {[%clk 0:01:10]} 23. Qe4 {[%clk 0:00:51]}  Qb5 {[%clk 0:01:00]} 24. Rd1 {[%clk 0:00:48]}  Qd5 {[%clk 0:00:58]} 25. Qf4 {[%clk 0:00:44]}  b6 {[%clk 0:00:44]} 26. Rc1 {[%clk 0:00:42]}  b5 {[%clk 0:00:43]} 27. Rc3 {[%clk 0:00:42]}  Bd8 {[%clk 0:00:42]} 28. Rf3 {[%clk 0:00:41]}  Qd7 {[%clk 0:00:41]} 29. Qe4 {[%clk 0:00:41]}  Qd5 {[%clk 0:00:39]} 30. Qf4 {[%clk 0:00:41]}  Qd7 {[%clk 0:00:39]} 31. Rc3 {[%clk 0:00:35]}  Bb6 {[%clk 0:00:38]} 32. Rc2 {[%clk 0:00:27]}  Rg8 {[%clk 0:00:23]} 33. Rd2 {[%clk 0:00:24]}  Qd5 {[%clk 0:00:22]} 34. Qe3 {[%clk 0:00:22]}  Kd7 {[%clk 0:00:18]} 35. Bg5 {[%clk 0:00:22]}  Kc6 {[%clk 0:00:17]} 36. Qf4 {[%clk 0:00:22]}  Qd7 {[%clk 0:00:12]} 37. d5+ {[%clk 0:00:19]}  exd5 {[%clk 0:00:11]} 38. Qf6+ {[%clk 0:00:19]}  Kb7 {[%clk 0:00:10]} 39. Be3 {[%clk 0:00:15]}  Bxe3 {[%clk 0:00:09]} 40. fxe3 {[%clk 0:00:16]}  Qe6 {[%clk 0:00:08]} 41. Qf3 {[%clk 0:00:17]}  Rd8 {[%clk 0:00:07]} 42. e4 {[%clk 0:00:17]}  d4 {[%clk 0:00:07]} 43. Rf2 {[%clk 0:00:16]}  Rd7 {[%clk 0:00:06]} 44. Qf4 {[%clk 0:00:15]}  d3 {[%clk 0:00:06]} 45. Qe3 {[%clk 0:00:12]}  c3 {[%clk 0:00:04]} 46. Rf6 {[%clk 0:00:12]}  Qxf6 {[%clk 0:00:02]} 47. exf6 {[%clk 0:00:12]}  d2 {[%clk 0:00:03]} 48. e5 {[%clk 0:00:09]}  d1=Q+ {[%clk 0:00:03]} 49. Kh2 {[%clk 0:00:10]}  Qd5 {[%clk 0:00:03]} 50. Qf4 {[%clk 0:00:09]}  Rc7 {[%clk 0:00:02]} 51. h4 {[%clk 0:00:07]}  Qe6 {[%clk 0:00:03]} 52. Qe4+ {[%clk 0:00:07]}  Rc6 {[%clk 0:00:02]} 53. Qd4 {[%clk 0:00:05]}  c2 {[%clk 0:00:03]} 54. h5 {[%clk 0:00:05]}  c1=Q {[%clk 0:00:03]} 55. hxg6 {[%clk 0:00:06]}  Qh6+ {[%clk 0:00:02]} 56. Kg3 {[%clk 0:00:06]}  Qxg6+ {[%clk 0:00:03]} 57. Kf2 {[%clk 0:00:07]}  Qgf5+ {[%clk 0:00:03]} 58. Kg3 {[%clk 0:00:07]}  Qfxe5+ {[%clk 0:00:03]} 0-1


[Site "https://www.chess.com"]

[Event "Titled Tuesday Blitz December 06 Late 2022"]
[White "Ismayil, Malak"]
[Black "Weisz, Bryan"]
[WhiteFideId "13412604"]
[BlackFideId "30934133"]
[WhiteElo "1880"]
[BlackElo "2283"]
[Result "0-1"]
[Round "02"]
[TimeControl "180+1"]
[Date "2022.12.07"]
[WhiteClock "0:01:28"]
[BlackClock "0:00:44"]

1. e4 {[%clk 0:03:00]}  Nc6 {[%clk 0:02:59]} 2. Nf3 {[%clk 0:02:57]}  Nb8 {[%clk 0:03:00]} 3. d4 {[%clk 0:02:56]}  d6 {[%clk 0:02:59]} 4. Nc3 {[%clk 0:02:56]}  e6 {[%clk 0:02:59]} 5. Be2 {[%clk 0:02:52]}  Be7 {[%clk 0:02:59]} 6. O-O {[%clk 0:02:53]}  Nf6 {[%clk 0:02:57]} 7. Bg5 {[%clk 0:02:52]}  h6 {[%clk 0:02:53]} 8. Bxf6 {[%clk 0:02:36]}  Bxf6 {[%clk 0:02:53]} 9. Qd2 {[%clk 0:02:37]}  O-O {[%clk 0:02:45]} 10. Rad1 {[%clk 0:02:38]}  c5 {[%clk 0:02:43]} 11. dxc5 {[%clk 0:02:32]}  dxc5 {[%clk 0:02:41]} 12. Qe3 {[%clk 0:02:32]}  Qa5 {[%clk 0:02:36]} 13. e5 {[%clk 0:02:32]}  Be7 {[%clk 0:02:35]} 14. Ne4 {[%clk 0:02:32]}  Nd7 {[%clk 0:02:15]} 15. a3 {[%clk 0:02:29]}  Qc7 {[%clk 0:01:52]} 16. Nc3 {[%clk 0:02:16]}  a6 {[%clk 0:01:41]} 17. a4 {[%clk 0:02:16]}  b6 {[%clk 0:01:41]} 18. Rd2 {[%clk 0:02:16]}  Bb7 {[%clk 0:01:40]} 19. Rfd1 {[%clk 0:02:16]}  Rfd8 {[%clk 0:01:24]} 20. h4 {[%clk 0:02:13]}  Rac8 {[%clk 0:01:17]} 21. h5 {[%clk 0:02:13]}  Bxf3 {[%clk 0:01:14]} 22. Bxf3 {[%clk 0:02:09]}  Nxe5 {[%clk 0:01:14]} 23. Be2 {[%clk 0:01:54]}  Nc6 {[%clk 0:00:55]} 24. Bxa6 {[%clk 0:01:51]}  Bg5 {[%clk 0:00:54]} 25. Rxd8+ {[%clk 0:01:46]}  Rxd8 {[%clk 0:00:55]} 26. Rxd8+ {[%clk 0:01:46]}  Qxd8 {[%clk 0:00:54]} 27. f4 {[%clk 0:01:40]}  Bf6 {[%clk 0:00:53]} 28. Kh2 {[%clk 0:01:31]}  Nb4 {[%clk 0:00:53]} 29. Bd3 {[%clk 0:01:28]}  Bd4 {[%clk 0:00:44]} 30. Qe4 {[%clk 0:01:28]}  Qh4# {[%clk 0:00:44]} 0-1


[Site "https://www.chess.com"]